bitfinex/quotes_ETHUSD_20251010
["timestamp","ask_amount","ask_price","bid_price","bid_amount"]
[1760109255333,0.63459924,4274.7,4274.1,0.001]
[1760109255334,0.48536884,4274.2,4274.1,0.001]
[1760109255490,0.48536884,4274.6,4274.4,2.33950856]
[1760109255831,0.48536884,4274.8,4274.5,0.4558]
[1760109256031,0.48536884,4275.1,4274.4,0.27963086]
[1760109256233,0.48536884,4275.0,4274.4,0.27963086]
[1760109256419,0.48536884,4274.9,4274.1,3.751]
[1760109256593,0.48536884,4274.9,4274.1,0.001]
[1760109256594,0.61201782,4274.6,4274.1,0.001]
[1760109256940,14.65943184,4274.2,4269.5,0.4558]
[1760109257150,14.65943184,4274.2,4269.6,1.97142139]
[1760109257151,0.61160235,4271.6,4269.6,1.97142139]
[1760109257354,14.65943184,4272.5,4269.9,0.4558]
[1760109257355,4.26099945,4271.7,4269.9,0.4558]
[1760109257511,2.42795026,4271.6,4269.9,0.4558]
[1760109257706,0.50795026,4271.6,4269.9,0.4558]
[1760109257907,0.50795026,4271.6,4270.3,2.34172332]
[1760109258107,2.82646681,4271.5,4270.1,2.53081359]
[1760109258336,0.48536884,4271.9,4270.4,2.5058]
[1760109258536,0.02258142,4272.0,4270.4,2.5058]
[1760109259051,0.02258142,4272.0,4270.5,2.3416308]
[1760109259211,0.02258142,4272.0,4270.4,2.5058]
[1760109259212,2.34104592,4271.6,4270.4,2.5058]
[1760109259411,2.34105193,4271.6,4270.4,2.5058]
[1760109259613,0.50795026,4271.7,4270.4,2.5058]
[1760109259820,0.02258142,4271.7,4270.4,4.84748368]
[1760109260061,2.34104745,4271.6,4270.4,4.84748368]
[1760109260257,1.92,4271.8,4270.4,2.5058]
[1760109260458,0.02258142,4271.7,4270.4,2.5058]
[1760109260655,2.34093459,4271.8,4270.4,4.84749858]
[1760109260965,2.34104316,4271.6,4269.7,2.746]
[1760109261259,2.34115278,4271.4,4269.8,0.1168]
[1760109261463,8.01015278,4271.4,4269.7,2.746]
[1760109261646,8.92744255,4271.4,4268.7,0.4558]
[1760109261847,2.34137204,4271.0,4268.9,3.78850581]
[1760109262026,4.28395346,4271.0,4268.9,1.446]
[1760109262220,0.50857119,4271.0,4269.3,0.4558]
[1760109262423,1.22320471,4272.0,4268.9,1.446]
[1760109262424,0.48678977,4271.6,4269.8,0.4558]
[1760109262622,0.02178142,4271.5,4270.2,0.19]
[1760109262852,2.34115278,4271.4,4270.2,0.19]
[1760109263036,2.34106964,4271.6,4270.2,0.19]
[1760109263037,0.02178142,4271.3,4270.2,0.19]
[1760109263242,0.02178142,4271.6,4270.1,0.19]
[1760109263439,0.02178142,4272.0,4270.8,2.34143385]
[1760109263635,2.34113555,4271.5,4270.1,0.19]
[1760109263852,0.02178142,4271.4,4270.1,0.19]
[1760109264051,0.02178142,4271.7,4270.5,2.34164504]
[1760109264221,2.34105999,4271.6,4270.1,0.19]
[1760109264420,2.34127473,4271.2,4270.0,2.34191598]
[1760109264630,0.02178142,4271.1,4270.0,2.34192019]
[1760109264862,2.34082678,4272.0,4269.9,0.294]
[1760109264863,2.3505,4271.2,4269.9,0.294]
[1760109265161,4.69187204,4271.0,4270.8,0.001]
[1760109265755,1.92,4271.0,4270.8,0.001]
[1760109266125,4.71365346,4271.0,4270.8,0.001]
[1760109266326,4.71365346,4271.0,4270.4,0.001]
[1760109266327,2.34164617,4270.5,4270.4,0.001]
[1760109266567,4.28342759,4270.5,4270.4,0.001]
[1760109266724,5.19858135,4270.5,4270.4,0.001]
[1760109266929,5.17679993,4270.5,4270.4,0.001]
[1760109267157,0.91515376,4270.5,4270.4,0.001]
[1760109267324,2.79392759,4270.5,4270.4,0.001]
[1760109267520,3.27831072,4270.5,4270.4,0.001]
[1760109267926,0.48438313,4270.5,4270.4,0.001]
[1760109268127,0.48438313,4271.5,4270.4,0.4734]
[1760109268330,2.34164617,4270.5,4270.4,0.001]
[1760109268640,8.00964617,4270.5,4270.4,0.001]
[1760109268839,1.92,4270.4,4268.3,2.3428308]
[1760109269041,2.34224271,4269.5,4268.4,2.3427978]
[1760109269241,0.02178142,4269.4,4268.4,2.3427978]
[1760109269443,0.02178142,4269.6,4268.6,2.34267442]
[1760109269665,0.50569606,4269.9,4268.7,0.02342633]
[1760109269867,0.02178142,4269.9,4268.2,0.504]
[1760109270167,2.36376171,4269.9,4268.3,0.14280853]
[1760109270473,1.92,4270.6,4268.4,2.81516067]
[1760109270627,0.02178142,4270.5,4268.5,0.02342743]
[1760109270827,0.02178142,4270.8,4268.6,0.4724]
[1760109271039,0.02178142,4270.9,4268.7,0.02342633]
[1760109271270,0.02178142,4271.5,4269.0,2.34246896]
[1760109271435,0.1168,4270.8,4270.2,2.34181068]
[1760109271638,0.1168,4270.8,4270.7,2.34153651]
[1760109271869,0.1168,4271.2,4270.6,2.34157712]
[1760109272066,0.2196,4271.6,4270.0,1.95]
[1760109272269,0.1168,4270.9,4270.2,0.1168]
[1760109272479,0.1168,4270.9,4270.3,0.02341755]
[1760109272678,0.1168,4270.9,4270.2,0.1168]
[1760109273728,0.1168,4270.9,4270.2,2.45859106]
[1760109273929,0.1168,4270.9,4270.2,0.1168]
[1760109274134,0.02178142,4271.9,4270.3,0.77877755]
[1760109274334,0.02178142,4272.2,4271.2,2.3412624]
[1760109274553,0.1168,4271.5,4271.3,0.02341207]
[1760109274785,0.1168,4271.5,4271.4,2.3411087]
[1760109274965,0.1168,4271.5,4271.0,3.747]
[1760109275134,0.1168,4271.5,4271.1,2.3413041]
[1760109275334,0.1168,4271.5,4271.0,3.747]
[1760109275562,0.1168,4271.5,4271.2,2.34121598]
[1760109275776,0.1168,4271.5,4271.3,2.34119922]
[1760109275981,0.1168,4271.5,4271.0,6.47474505]
[1760109276281,0.1168,4271.5,4271.0,4.13338]
[1760109276577,0.1168,4271.5,4271.0,4.60578]
[1760109276761,0.1168,4271.5,4271.0,3.747]
[1760109276961,0.1168,4271.0,4270.3,0.28296]
[1760109277180,0.4655,4271.4,4270.3,2.142]
[1760109277181,0.1168,4270.7,4270.3,2.142]
[1760109277336,0.1168,4270.7,4270.5,2.34164119]
[1760109277531,0.1168,4270.7,4270.3,2.142]
[1760109277807,0.1168,4270.7,4270.3,2.36788]
[1760109278279,0.1168,4270.7,4270.3,2.142]
[1760109278434,0.02178142,4271.4,4270.3,2.142]
[1760109278639,0.1168,4270.4,4270.2,2.34180439]
[1760109278959,0.1168,4270.4,4270.0,2.662]
[1760109279470,0.60762651,4271.0,4270.0,2.662]
[1760109279685,0.1168,4270.0,4269.4,3.745]
[1760109279885,0.60762651,4270.8,4269.4,3.745]
[1760109279886,0.4655,4270.2,4269.4,3.745]
[1760109280071,0.02178142,4270.1,4269.4,3.745]
[1760109280390,0.1168,4269.4,4268.7,0.1168]
[1760109280588,0.1168,4268.7,4267.8,1.95]
[1760109280763,0.1168,4268.4,4267.8,4.29308512]
[1760109281082,0.1168,4268.4,4267.8,1.95]
[1760109281284,0.48400169,4268.3,4267.8,1.95]
[1760109281487,0.02178142,4268.7,4267.8,2.5194]
[1760109281488,0.48400169,4268.2,4267.8,2.5194]
[1760109281661,0.1168,4268.2,4267.8,2.5194]
[1760109281990,0.1168,4268.2,4267.9,0.02343072]
[1760109282146,0.1168,4268.5,4268.4,2.34279823]
[1760109282487,0.60263908,4268.5,4268.4,2.34279823]
[1760109282861,0.60263908,4268.5,4267.9,0.4724]
[1760109283191,1.09346559,4268.4,4267.9,0.68526]
[1760109283406,0.48583908,4268.3,4268.0,2.34300626]
[1760109283684,0.60762651,4268.4,4267.1,2.34346842]
[1760109283685,0.48583908,4268.2,4267.1,2.34346842]
[1760109283886,0.60762651,4268.4,4265.8,6.095]
[1760109283887,0.1168,4267.7,4267.4,2.34329629]
[1760109284088,0.1168,4267.7,4267.4,2.34334723]
[1760109284292,0.48646651,4267.6,4267.4,2.34334723]
[1760109284493,0.83725123,4268.5,4267.5,0.4724]
[1760109284675,0.1168,4268.0,4267.6,0.02343237]
[1760109284878,0.1168,4268.0,4267.9,2.3430727]
[1760109285084,0.60336579,4268.0,4267.9,2.36650342]
[1760109285259,0.60336579,4268.0,4267.9,2.3430727]
[1760109285672,15.66194754,4268.0,4263.9,1.15323187]
[1760109285870,15.66194754,4268.0,4260.6,3.17]
[1760109285871,0.81546981,4267.1,4264.4,0.123]
[1760109286071,0.81546981,4266.6,4265.2,0.5494]
[1760109286297,0.81546981,4266.4,4265.2,0.5494]
[1760109286495,0.48656579,4266.5,4265.2,0.5494]
[1760109286496,0.81546981,4266.2,4265.3,3.743]
[1760109286695,1.3020356,4266.1,4265.3,3.743]
[1760109286896,0.48656579,4266.0,4265.4,0.5695]
[1760109287100,0.48656579,4266.0,4265.1,1.952]
[1760109287101,1.32381702,4265.9,4265.1,0.001]
[1760109287297,1.3020356,4265.8,4265.1,3.744]
[1760109287598,0.48656579,4265.7,4265.2,2.36798042]
[1760109287796,0.48656579,4265.6,4265.1,3.744]
[1760109288113,1.3020356,4265.5,4265.1,3.744]
[1760109288296,0.98044721,4265.4,4265.1,3.744]
[1760109288503,0.95866579,4265.3,4265.1,0.001]
[1760109288706,0.50834721,4265.2,4265.1,0.001]
[1760109289358,0.98044721,4265.2,4265.1,0.001]
[1760109289559,3.32500315,4265.2,4265.1,0.001]
[1760109289764,1.79591702,4265.2,4265.1,0.001]
[1760109289995,0.98044721,4265.2,4265.1,0.001]
[1760109290565,0.50834721,4265.2,4265.1,0.001]
[1760109291297,0.48656579,4265.4,4265.1,0.001]
[1760109291498,1.22320471,4266.3,4265.1,0.001]
[1760109291499,0.50834721,4265.9,4265.1,0.001]
[1760109291702,0.50834721,4266.2,4265.1,0.0244461]
[1760109292002,0.48656579,4266.1,4265.1,3.7674461]
[1760109292185,0.48656579,4266.1,4265.1,3.744]
[1760109292365,0.50834721,4266.3,4265.2,0.02344555]
[1760109292700,0.02178142,4266.3,4265.9,2.34416429]
[1760109292895,0.50834721,4266.5,4265.8,2.3442256]
[1760109293097,0.02178142,4266.5,4265.7,0.02344281]
[1760109293394,0.48656579,4266.4,4265.1,4.1184]
[1760109293595,0.98044721,4266.3,4265.1,6.08856139]
[1760109293794,0.49388142,4266.3,4265.3,2.34449347]
[1760109294096,0.02178142,4266.3,4265.2,2.34455594]
[1760109294259,0.02178142,4266.3,4265.7,2.34425346]
[1760109294595,0.48656579,4266.6,4265.7,2.34425346]
[1760109294596,0.02178142,4266.5,4265.7,2.34426327]
[1760109294830,0.48656579,4266.9,4266.2,2.34397498]
[1760109294993,0.02178142,4266.8,4265.9,0.02344171]
[1760109295193,0.02178142,4266.8,4265.9,2.34417121]
[1760109295531,2.34363607,4266.9,4265.8,3.742]
[1760109295828,0.1168,4265.9,4265.7,3.742]
[1760109296006,0.1168,4265.9,4265.8,2.34422617]
[1760109296485,0.02178142,4266.8,4265.8,0.4664]
[1760109296833,0.4721,4266.7,4264.7,2.3447895]
[1760109297005,2.34401833,4266.2,4265.5,3.742]
[1760109297325,0.02178142,4266.1,4265.5,3.742]
[1760109297627,0.1168,4265.5,4264.6,0.1168]
[1760109297836,0.02178142,4266.1,4264.9,3.742]
[1760109297982,2.3442153,4265.9,4264.9,3.742]
[1760109298182,0.02178142,4265.8,4264.9,3.742]
[1760109298428,0.02178142,4265.8,4264.9,6.08670846]
[1760109298591,0.02178142,4265.8,4264.9,3.742]
[1760109299193,2.36595548,4265.9,4264.9,6.08671869]
[1760109299394,0.02178142,4265.9,4265.0,2.34465525]
[1760109299622,0.02178142,4265.9,4264.9,3.742]
[1760109300024,0.02178142,4265.9,4264.5,0.0234494]
[1760109300178,0.4715,4265.9,4264.7,0.29]
[1760109300496,0.4715,4265.9,4263.0,2.3457616]
[1760109300497,2.34455594,4265.2,4263.7,1.173]
[1760109300681,2.36633736,4265.2,4263.7,1.173]
[1760109300883,2.83783736,4265.2,4263.7,1.173]
[1760109301220,2.83783736,4265.2,4263.7,3.51833648]
[1760109301520,0.97984721,4265.2,4264.6,0.001]
[1760109301814,2.83783736,4265.2,4264.6,0.001]
[1760109302119,3.29924596,4265.2,4264.6,0.001]
[1760109302422,6.92901646,4265.2,4264.6,0.001]
[1760109302583,4.14350979,4265.2,4264.6,0.001]
[1760109302919,0.97984721,4265.2,4264.6,0.001]
[1760109303214,2.83783736,4265.2,4263.2,0.5862]
[1760109303443,0.49328142,4265.2,4263.2,0.5862]
[1760109303780,2.83783736,4265.2,4263.2,0.5862]
[1760109303985,2.83783736,4265.2,4262.3,0.4694]
[1760109303986,4.73605594,4265.2,4262.3,0.4694]
[1760109304305,4.73605594,4265.2,4263.3,2.34555865]
[1760109304306,0.95806579,4265.2,4263.3,2.34555865]
[1760109304506,0.95806579,4265.2,4263.1,0.0234571]
[1760109304507,1.92,4264.7,4263.1,0.0234571]
[1760109304706,0.02178142,4264.6,4264.2,2.34508396]
[1760109304910,0.46686202,4265.5,4262.4,1.6536]
[1760109304911,0.02178142,4265.3,4264.1,0.193]
[1760109305210,0.50834721,4266.6,4264.3,0.4694]
[1760109305411,0.02178142,4266.8,4264.4,0.02344995]
[1760109305709,0.48656579,4267.2,4265.0,1.92]
[1760109305916,0.50513739,4267.8,4265.3,1.92]
[1760109306087,0.2173,4267.6,4266.4,2.34387593]
[1760109306291,0.50513739,4267.5,4266.2,3.74]
[1760109306510,0.95405597,4267.4,4266.3,2.34389914]
[1760109306832,0.49328142,4267.3,4265.7,3.74]
[1760109306988,0.49328142,4267.3,4266.2,2.34395337]
[1760109307185,0.02178142,4267.3,4265.8,4.2094]
[1760109307424,0.02178142,4267.3,4265.9,0.42094]
[1760109307789,0.02178142,4267.4,4265.9,0.42094]
[1760109308227,0.80400094,4267.3,4265.9,0.42094]
[1760109308411,0.02178142,4267.2,4265.9,0.42094]
[1760109308730,0.82578236,4267.2,4266.6,2.34378619]
[1760109308900,0.82578236,4267.2,4265.8,3.74]
[1760109309095,0.82578236,4267.2,4265.8,6.08422237]
[1760109309298,0.80400094,4266.6,4264.7,1.92]
[1760109309498,0.80400094,4266.1,4264.8,3.643]
[1760109309768,0.02178142,4266.0,4264.8,3.643]
[1760109309918,0.80400094,4265.9,4264.8,3.643]
[1760109310119,0.02178142,4265.8,4265.3,2.34448363]
[1760109310352,0.80400094,4265.8,4265.1,0.0234461]
[1760109310552,0.80400094,4265.9,4265.5,2.34434247]
[1760109310727,0.80400094,4266.1,4265.6,0.02344336]
[1760109310929,0.80400094,4266.3,4265.7,2.81363003]
[1760109311132,0.80400094,4266.7,4265.8,0.536063]
[1760109311332,0.80400094,4266.5,4265.7,0.4694]
[1760109311536,0.02178142,4266.4,4265.6,2.547]
[1760109311853,2.34348167,4267.2,4265.6,2.547]
[1760109311854,0.02178142,4267.2,4265.7,0.02344281]
[1760109312058,0.02178142,4267.2,4266.3,2.3439151]
[1760109312219,0.02178142,4267.2,4266.1,0.02344061]
[1760109312421,2.3435669,4267.0,4265.6,4.89133493]
[1760109312620,0.49328142,4266.9,4265.7,2.34428031]
[1760109312855,0.49328142,4266.9,4265.6,4.89132502]
[1760109313057,2.34378089,4266.7,4265.6,2.547]
[1760109313222,0.02178142,4266.6,4265.6,2.547]
[1760109313422,2.36546626,4266.8,4265.6,4.89132187]
[1760109313642,0.02178142,4266.8,4265.6,2.547]
[1760109313845,0.02178142,4266.8,4265.2,2.34453362]
[1760109313846,0.4715,4266.7,4264.4,1.92]
[1760109314044,0.1168,4265.2,4264.5,1.4168]
[1760109314353,0.4715,4265.9,4264.5,3.6448943]
[1760109314556,0.1168,4265.0,4264.9,2.34472086]
[1760109314757,0.1168,4265.6,4264.9,2.95434828]
[1760109314956,0.1168,4265.6,4265.5,2.34439104]
[1760109315167,0.1168,4265.6,4265.0,2.34463647]
[1760109315369,0.4715,4266.0,4264.7,3.736]
[1760109315667,0.1168,4265.3,4265.2,2.34455594]
[1760109316023,0.1168,4265.7,4265.6,2.34433608]
[1760109316249,0.02178142,4266.8,4265.6,6.54973608]
[1760109316450,0.1168,4266.4,4265.7,0.02344281]
[1760109316660,0.4715,4267.5,4265.7,0.02344281]
[1760109316661,0.02178142,4267.4,4265.7,0.4694]
[1760109316829,0.4715,4267.3,4264.8,0.4694]
[1760109317031,0.1168,4266.2,4265.5,0.1168]
[1760109317284,0.02178142,4267.2,4265.6,0.4694]
[1760109317443,0.1168,4266.7,4266.0,0.1168]
[1760109317642,1.20600142,4268.2,4265.7,6.07927225]
[1760109317643,0.80400094,4268.3,4266.1,2.6114]
[1760109317839,0.4715,4268.0,4267.2,2.34344991]
[1760109318039,0.02178142,4267.9,4267.0,3.735]
[1760109318245,0.02178142,4267.9,4265.9,2.34415472]
[1760109318246,4.4238,4267.8,4264.0,0.193]
[1760109318542,2.72400094,4267.3,4264.7,2.34483082]
[1760109318759,2.3435669,4267.0,4264.8,0.49284775]
[1760109318958,0.4883307,4267.0,4264.9,1.743]
[1760109319160,0.02178142,4267.5,4265.0,2.3894]
[1760109319481,0.4883307,4267.9,4265.1,0.4694]
[1760109319482,0.02178142,4267.9,4265.1,0.4694]
[1760109319693,0.4715,4267.9,4265.4,1.92]
[1760109319856,0.02178142,4267.8,4265.5,0.4694]
[1760109320183,0.002,4268.1,4267.5,2.34328683]
[1760109320346,0.4715,4268.0,4265.6,0.23894]
[1760109320546,0.23908142,4267.9,4265.7,4.15184281]
[1760109320879,0.002,4267.8,4265.9,4.26417121]
[1760109321186,0.002,4267.8,4267.7,2.34318251]
[1760109321370,0.002,4267.8,4267.7,6.545827]
[1760109321543,0.002,4267.8,4267.7,2.34318251]
[1760109321748,0.002,4267.8,4267.7,6.57001433]
[1760109321944,0.002,4268.6,4268.5,2.34274335]
[1760109322177,0.002,4268.6,4268.5,6.07574335]
[1760109322553,0.002,4268.6,4268.5,6.54514335]
[1760109322758,0.002,4268.6,4268.5,7.44480997]
[1760109322959,0.002,4268.6,4268.5,1.36906662]
[1760109323162,0.002,4268.6,4268.5,2.202]
[1760109323346,0.002,4268.6,4268.5,4.54474335]
[1760109323750,0.002,4268.6,4268.2,0.1087]
[1760109324073,0.002,4268.6,4268.5,2.34274335]
[1760109324274,0.002,4268.6,4268.5,3.19781585]
[1760109324497,0.002,4268.6,4268.5,5.61064328]
[1760109324825,0.02378142,4271.7,4268.5,1.3244725]
[1760109324991,0.02378142,4271.7,4270.2,2.3417653]
[1760109325191,2.34104316,4271.6,4270.3,2.36514938]
[1760109325394,2.34104316,4271.6,4269.3,1.952]
[1760109325395,0.02178142,4271.5,4270.4,2.068]
[1760109325590,0.002,4271.7,4271.0,2.34131996]
[1760109325789,0.02378142,4271.7,4270.8,3.511]
[1760109326011,0.002,4271.7,4270.9,0.02341426]
[1760109326222,0.002,4271.7,4271.0,0.02341372]
[1760109326526,0.002,4271.7,4270.8,3.511]
[1760109327017,0.02378142,4271.7,4270.8,3.511]
[1760109327220,0.002,4271.7,4271.3,2.34120202]
[1760109327378,0.002,4271.7,4271.2,2.34124078]
[1760109327581,0.1168,4271.2,4270.9,2.34142686]
[1760109328019,0.1168,4271.2,4270.8,3.8621]
[1760109328221,0.1168,4271.2,4270.8,3.511]
[1760109328731,0.002,4271.7,4271.6,2.34104316]
[1760109329033,0.002,4271.7,4271.6,6.09445359]
[1760109329248,0.002,4271.7,4271.6,6.53024316]
[1760109329396,0.002,4271.7,4271.6,6.64704316]
[1760109329591,0.002,4271.7,4271.6,0.64975548]
[1760109329794,0.002,4271.7,4271.6,6.07004316]
[1760109329994,0.002,4271.7,4271.4,0.1168]
[1760109330201,0.002,4271.7,4271.6,2.34104316]
[1760109330438,0.002,4271.7,4271.5,3.729]
[1760109330645,0.002,4271.7,4270.7,0.4592]
[1760109330809,2.34300257,4271.7,4270.8,0.472]
[1760109331013,0.45918142,4271.6,4269.0,0.4592]
[1760109331211,2.34109797,4271.5,4268.8,1.951]
[1760109331414,2.3421594,4269.6,4267.9,0.4592]
[1760109331635,0.02178142,4269.5,4265.9,0.47422583]
[1760109331947,1.92,4269.4,4267.4,0.116]
[1760109332114,0.02178142,4269.3,4267.5,0.59863292]
[1760109332320,0.02178142,4269.3,4267.6,1.567]
[1760109332521,0.02178142,4269.3,4267.7,0.43929767]
[1760109332768,2.34241409,4269.1,4267.6,1.567]
[1760109333054,0.45918142,4269.0,4267.6,1.567]
[1760109333259,2.34324784,4267.6,4266.0,0.5679]
[1760109333421,0.4374,4268.9,4266.5,3.727]
[1760109333627,0.4374,4268.9,4267.7,2.34312777]
[1760109333961,2.34175828,4270.3,4269.0,2.34245605]
[1760109334110,0.47611464,4270.4,4268.7,3.727]
[1760109334310,0.47611464,4270.4,4268.8,2.40262578]
[1760109334563,0.47611464,4270.4,4268.9,0.4592]
[1760109334745,0.02178142,4270.3,4268.5,0.1489]
[1760109334957,0.02178142,4270.3,4268.6,0.02342688]
[1760109335269,0.45918142,4270.3,4267.2,0.1489]
[1760109335422,2.34206892,4269.8,4268.0,2.34300335]
[1760109335624,0.02178142,4269.7,4268.1,3.611]
[1760109335823,0.02178142,4269.7,4268.3,2.34285312]
[1760109336111,0.02178142,4270.1,4268.4,1.07801329]
[1760109336256,0.02178142,4270.8,4268.4,3.42079914]
[1760109336571,0.02178142,4271.4,4268.7,1.92]
[1760109336742,0.02178142,4271.4,4268.9,1.92]
[1760109336941,0.02178142,4271.4,4269.1,2.34241409]
[1760109337144,2.34127573,4271.2,4269.2,0.47450388]
[1760109337461,0.02178142,4271.4,4269.3,3.726]
[1760109337462,2.34147187,4270.9,4269.3,3.726]
[1760109337776,2.80068489,4270.8,4269.4,2.34221261]
[1760109338076,2.80068489,4270.8,4269.4,2.34224904]
[1760109338077,2.34166472,4270.5,4269.4,2.34224904]
[1760109338260,2.34186838,4270.1,4269.2,3.726]
[1760109338426,0.45918142,4270.0,4268.4,0.59538531]
[1760109338625,0.45918142,4270.0,4268.5,3.726]
[1760109339127,0.02178142,4270.0,4269.2,2.34233866]
[1760109339325,0.002,4270.1,4269.3,3.725]
[1760109339529,0.002,4270.1,4269.6,2.34212867]
[1760109339737,0.002,4270.1,4269.7,2.34204003]
[1760109339965,0.002,4270.1,4269.8,0.234204]
[1760109340138,0.002,4270.1,4268.5,0.4592]
[1760109340345,0.002,4270.1,4269.3,0.4592]
[1760109340547,0.1188,4270.1,4269.9,2.34196825]
[1760109340794,0.1188,4270.1,4270.0,2.36533957]
[1760109340930,0.002,4270.1,4270.0,3.27185704]
[1760109341134,0.002,4270.1,4270.0,3.41207624]
[1760109341369,0.002,4271.7,4270.2,2.34181068]
[1760109341682,0.002,4271.7,4271.6,4.56484316]
[1760109341845,0.002,4271.7,4271.6,10.93043984]
[1760109342054,0.002,4272.6,4272.5,2.34055002]
[1760109342255,0.2257,4276.0,4272.5,3.7474055]
[1760109342256,0.02178142,4275.1,4272.5,3.7474055]
[1760109342451,0.1168,4273.6,4273.4,2.34005431]
[1760109342648,0.1168,4273.6,4273.5,2.34000234]
[1760109343167,0.5542,4273.6,4271.7,2.34098836]
[1760109343354,0.02178142,4274.0,4272.3,0.4592]
[1760109343553,0.4374,4274.5,4272.3,0.4592]
[1760109343554,2.3396998,4274.1,4272.3,0.4592]
[1760109343767,0.02178142,4274.0,4272.4,0.02340604]
[1760109343968,0.02178142,4274.4,4272.3,0.4592]
[1760109344553,1.463,4275.5,4272.4,1.94340604]
[1760109344554,0.02178142,4274.7,4272.4,1.94340604]
[1760109344760,0.4374,4275.4,4272.6,2.34049524]
[1760109344946,1.92,4275.1,4272.7,4.2056044]
[1760109345145,0.02178142,4275.0,4272.8,0.4592]
[1760109345346,2.33914681,4275.1,4272.9,2.34033092]
[1760109345662,0.02178142,4275.0,4273.0,2.4092]
[1760109345865,0.02178142,4275.0,4274.1,2.33967313]
[1760109346200,0.02178142,4275.3,4274.2,3.74539619]
[1760109346344,0.002,4276.4,4274.4,2.33950963]
[1760109346345,0.46118142,4276.4,4274.4,2.33950963]
[1760109346696,0.46118142,4276.4,4274.2,0.4592]
[1760109346990,2.33875314,4275.8,4274.8,2.33928658]
[1760109347157,0.02178142,4275.7,4273.9,2.33978151]
[1760109347344,0.02178142,4275.7,4273.5,0.4592]
[1760109347549,1.92,4275.2,4272.1,1.95]
[1760109347761,2.33950947,4274.5,4273.1,2.34021871]
[1760109348085,2.3395692,4274.3,4273.2,3.721]
[1760109348380,2.3393362,4274.8,4273.2,3.721]
[1760109348581,0.02178142,4274.7,4273.2,3.721]
[1760109348771,0.02178142,4275.0,4273.8,2.3397902]
[1760109348968,0.02178142,4275.0,4273.4,2.34005709]
[1760109349170,0.02178142,4275.0,4273.5,2.33995039]
[1760109349352,0.02178142,4275.3,4274.1,2.33966259]
[1760109349547,2.56439188,4275.9,4274.2,3.72]
[1760109349548,0.02178142,4275.8,4274.2,3.72]
[1760109349750,0.4377,4275.4,4273.8,3.72]
[1760109349944,0.02178142,4275.3,4273.9,0.02339783]
[1760109350280,0.6634,4275.9,4272.6,2.3404681]
[1760109350281,2.33951289,4274.4,4272.7,1.92]
[1760109350580,0.02098142,4274.3,4272.8,5.56195]
[1760109350781,0.4377,4275.2,4272.8,5.99145]
[1760109351085,2.33952049,4274.4,4273.4,2.34003159]
[1760109351307,0.02098142,4274.3,4272.8,0.66445]
[1760109351474,2.33991051,4273.7,4271.9,0.4295]
[1760109351664,0.02098142,4273.6,4272.6,2.34044976]
[1760109351864,2.33924119,4274.9,4271.9,0.4295]
[1760109351865,0.4377,4273.7,4271.9,0.4295]
[1760109352066,2.34007602,4273.4,4272.0,3.49077538]
[1760109352261,0.02098142,4273.3,4271.3,0.181]
[1760109352468,1.594,4273.2,4270.6,0.375]
[1760109352704,2.34027615,4273.0,4270.6,0.375]
[1760109352867,0.45868142,4272.9,4270.6,0.375]
[1760109353068,2.34153162,4270.8,4269.5,1.426]
[1760109353279,0.1168,4270.3,4269.6,0.1168]
[1760109353691,0.1168,4270.3,4270.2,2.34181068]
[1760109353893,0.1168,4270.6,4270.5,2.34163647]
[1760109354063,0.1168,4270.6,4270.2,0.23418107]
[1760109354263,0.1168,4270.6,4270.4,2.34165576]
[1760109354464,0.1168,4270.6,4269.9,0.1168]
[1760109354942,0.4377,4271.2,4269.6,2.34213612]
[1760109355070,2.57661753,4271.9,4270.2,2.34181068]
[1760109355071,0.1168,4270.3,4270.2,2.34181068]
[1760109355414,0.2357,4271.9,4270.2,0.4529181]
[1760109355415,0.1168,4270.6,4270.2,0.4529181]
[1760109355710,0.1168,4270.6,4270.2,2.34180457]
[1760109355912,0.1168,4270.6,4270.2,2.34180119]
[1760109356113,0.4377,4271.7,4269.1,0.4295]
[1760109356312,0.4377,4270.5,4269.2,3.718]
[1760109356470,0.02098142,4270.4,4269.5,2.34218516]
[1760109356669,0.02098142,4271.7,4269.6,0.02342139]
[1760109356868,0.02098142,4271.7,4269.9,2.34196695]
[1760109357064,0.4377,4271.6,4269.3,0.5668]
[1760109357314,2.34132364,4271.1,4270.1,2.34186542]
[1760109357510,2.34120759,4271.3,4269.4,3.74142249]
[1760109357511,0.02098142,4271.0,4269.8,2.34202618]
[1760109357819,0.02098142,4271.4,4269.9,0.49741975]
[1760109358024,0.02098142,4272.5,4271.2,2.34122367]
[1760109358319,0.02098142,4273.2,4271.3,3.20441207]
[1760109358527,0.02098142,4273.2,4271.4,6.65744121]
[1760109358781,0.02098142,4273.7,4271.5,1.94341097]
[1760109358910,0.02098142,4274.5,4273.3,2.34006497]
[1760109359111,2.33955758,4274.4,4273.3,2.34006497]
[1760109359356,0.002,4271.7,4271.5,2.34109797]
[1760109359643,0.002,4271.7,4271.6,6.37877259]
[1760109359831,0.002,4271.7,4271.6,8.71981575]
[1760109360007,0.002,4271.7,4270.7,0.474]
[1760109360208,0.002,4271.7,4271.2,2.34126185]
[1760109360445,0.002,4271.7,4268.3,0.1489]
[1760109360740,0.002,4271.7,4270.3,2.34175584]
[1760109360940,0.002,4271.7,4270.7,0.474]
[1760109361116,0.002,4271.7,4271.3,2.3411583]
[1760109361317,0.21708142,4273.1,4271.6,2.34104037]
[1760109361519,2.13708142,4273.1,4272.1,2.34074296]
[1760109361707,2.33979188,4273.9,4272.3,2.34065824]
[1760109361914,2.33950963,4274.4,4272.4,0.02340604]
[1760109362252,2.33901714,4275.3,4272.3,0.474]
[1760109362406,2.33982157,4273.9,4272.3,0.474]
[1760109362611,2.34000438,4273.5,4271.9,3.397]
[1760109362818,0.2193,4273.8,4271.9,3.397]
[1760109363020,0.2193,4273.8,4270.8,0.474]
[1760109363245,0.2193,4273.8,4269.8,1.95]
[1760109363542,2.34113344,4271.5,4269.9,0.195]